bitfinex/quotes_BTCUSD_20251209
["timestamp","ask_amount","ask_price","bid_price","bid_amount"]
[1765318495691,0.02157522,92693.0,92692.0,0.21576729]
[1765318495891,0.02157522,92693.0,92692.0,0.27066302]
[1765318496097,0.06262809,92693.0,92692.0,0.21576729]
[1765318496299,0.0099963,92694.0,92693.0,0.21576602]
[1765318498649,0.0109963,92694.0,92693.0,0.21576602]
[1765318500852,0.001,92694.0,92693.0,0.21576602]
[1765318501074,0.001,92694.0,92693.0,0.31273716]
[1765318501811,0.001,92694.0,92693.0,0.33394114]
[1765318502215,0.0099963,92715.0,92714.0,0.22650296]
[1765318503275,0.0099963,92715.0,92714.0,0.22750296]
[1765318503486,0.21576369,92694.0,92693.0,0.09697114]
[1765318503696,0.01078888,92688.0,92681.0,0.01078969]
[1765318503915,0.01079062,92673.0,92667.0,0.01079132]
[1765318504121,0.02157522,92670.0,92668.0,0.24369527]
[1765318504326,0.02157522,92670.0,92669.0,0.26501166]
[1765318504737,0.03404522,92680.0,92679.0,0.21579861]
[1765318504880,0.0099963,92681.0,92679.0,0.21579861]
[1765318505087,0.0099963,92681.0,92680.0,0.21579628]
[1765318505344,0.0099963,92681.0,92680.0,0.24061298]
[1765318505914,0.02157522,92688.0,92686.0,0.21578231]
[1765318506142,0.02157522,92692.0,92689.0,0.01078876]
[1765318506359,0.21577067,92691.0,92686.0,0.01078911]
[1765318506587,0.01247,92694.0,92692.0,0.21576835]
[1765318506857,0.03648,92703.0,92700.0,0.01078748]
[1765318506921,0.03648,92703.0,92701.0,0.21574706]
[1765318506922,0.04726713,92703.0,92701.0,0.21574706]
[1765318507114,0.0099963,92702.0,92701.0,0.2157474]
[1765318507429,0.01078888,92688.0,92681.0,0.01078969]
[1765318507654,0.21581978,92670.0,92669.0,0.01708]
[1765318507830,0.25451054,92670.0,92669.0,0.01708]
[1765318508031,0.26772957,92670.0,92669.0,0.01708]
[1765318508254,0.05191,92670.0,92669.0,0.06411245]
[1765318508460,0.05191,92670.0,92669.0,0.2329019]
[1765318508766,0.06431384,92670.0,92666.0,0.22661966]
[1765318508933,0.0099963,92669.0,92668.0,0.21582381]
[1765318510077,0.0099963,92668.0,92667.0,0.22661777]
[1765318510276,0.02157522,92673.0,92671.0,0.21581693]
[1765318510426,0.23738789,92673.0,92670.0,0.01079097]
[1765318510626,0.01543,92671.0,92670.0,0.21581957]
[1765318511030,0.03944,92671.0,92670.0,0.21581957]
[1765318511232,0.02157522,92669.0,92668.0,0.21582423]
[1765318511467,0.01543,92668.0,92667.0,0.05033258]
[1765318511681,0.02157522,92666.0,92665.0,0.01708]
[1765318511885,0.03689522,92666.0,92665.0,0.01708]
[1765318512084,0.27586411,92666.0,92665.0,0.01708]
[1765318512239,0.06003522,92666.0,92665.0,0.01708]
[1765318512745,0.06003522,92666.0,92665.0,0.06525643]
[1765318513087,0.06003522,92666.0,92665.0,0.01708]
[1765318513088,0.27586411,92666.0,92665.0,0.01708]
[1765318513265,0.06003522,92666.0,92665.0,0.01708]
[1765318513465,0.06003522,92666.0,92665.0,0.01808]
[1765318513674,0.04007287,92666.0,92665.0,0.001]
[1765318513878,0.26589806,92666.0,92665.0,0.001]
[1765318514398,0.05006917,92666.0,92665.0,0.001]
[1765318515041,0.01247,92672.0,92666.0,0.01079144]
[1765318515242,0.02157522,92666.0,92665.0,0.01179156]
[1765318515396,0.03689522,92666.0,92665.0,0.25431479]
[1765318515734,0.06003522,92666.0,92665.0,0.25331479]
[1765318516090,0.06003522,92666.0,92665.0,0.22662248]
[1765318516321,0.02157522,92662.0,92661.0,0.21606939]
[1765318516527,0.02777,92662.0,92661.0,0.21606939]
[1765318516719,0.05091,92662.0,92661.0,0.21606939]
[1765318517532,0.01247,92672.0,92671.0,0.21581724]
[1765318517868,0.01247,92672.0,92671.0,0.26114008]
[1765318518071,0.02779,92672.0,92671.0,0.26114008]
[1765318518206,0.05093,92672.0,92671.0,0.26114008]
[1765318518418,0.0099963,92681.0,92680.0,0.21579628]
[1765318518637,0.03402522,92684.0,92683.0,0.2157893]
[1765318518812,0.05755522,92684.0,92683.0,0.2157893]
[1765318519022,0.07283522,92684.0,92683.0,0.2157893]
[1765318519289,0.01247,92688.0,92687.0,0.21577999]
[1765318519417,0.0099963,92694.0,92693.0,0.21576602]
[1765318519637,0.0099963,92694.0,92693.0,0.23950036]
[1765318519827,0.0488063,92694.0,92693.0,0.23950036]
[1765318520506,0.0124,92708.0,92706.0,0.21573576]
[1765318520507,0.0335263,92707.0,92706.0,0.21573576]
[1765318520800,0.0099963,92707.0,92706.0,0.21573576]
[1765318521032,0.01245,92711.0,92710.0,0.21572645]
[1765318521166,0.03402522,92711.0,92710.0,0.3052551]
[1765318521576,0.07283522,92711.0,92710.0,0.3052551]
[1765318521784,0.0124,92721.0,92720.0,0.21570319]
[1765318521955,0.0099963,92721.0,92720.0,0.21570319]
[1765318522193,0.0488063,92721.0,92720.0,0.21570319]
[1765318522391,0.02157522,92719.0,92718.0,0.01078539]
[1765318522628,0.03685522,92719.0,92718.0,0.01078539]
[1765318522832,0.06038522,92719.0,92718.0,0.01078539]
[1765318523198,0.02157522,92718.0,92717.0,0.01708]
[1765318523495,0.06038522,92718.0,92717.0,0.01708]
[1765318523702,0.06038522,92718.0,92716.0,0.01078562]
[1765318523948,0.06038522,92718.0,92670.0,0.07748359]
[1765318523949,0.0099963,92702.0,92700.0,0.01078748]
[1765318524172,0.01078702,92704.0,92700.0,0.01078748]
[1765318524173,0.04925522,92701.0,92700.0,0.01078748]
[1765318524610,0.22813394,92707.0,92706.0,0.21573576]
[1765318524611,0.00161287,92707.0,92706.0,0.21573576]
[1765318524829,0.0099963,92702.0,92701.0,0.22653403]
[1765318525174,0.0099963,92702.0,92701.0,0.27570711]
[1765318525175,0.0252763,92702.0,92701.0,0.27570711]
[1765318525375,0.0488063,92702.0,92701.0,0.27570711]
[1765318526147,0.0488063,92702.0,92701.0,0.27670711]
[1765318526348,0.0488063,92702.0,92701.0,0.22753403]
[1765318526965,0.0488063,92702.0,92701.0,0.001]
[1765318527537,1.0488063,92702.0,92701.0,0.001]
[1765318528127,1.0488063,92702.0,92667.0,0.01079132]
[1765318528128,0.01079028,92676.0,92667.0,0.01079132]
[1765318528380,0.01079028,92676.0,92674.0,0.01079051]
[1765318528381,0.02157522,92676.0,92674.0,0.01079051]
[1765318528536,0.0124,92679.0,92676.0,0.01079028]
[1765318528729,0.02157522,92673.0,92672.0,0.01079074]
[1765318528928,0.04510522,92673.0,92672.0,0.23381828]
[1765318529457,0.06038522,92673.0,92672.0,0.23381828]
[1765318529863,0.0124,92679.0,92678.0,0.21580094]
[1765318530067,0.03397522,92679.0,92678.0,0.21580094]
[1765318530240,0.07278522,92679.0,92678.0,0.21580094]
[1765318530442,0.07278522,92679.0,92678.0,0.04819838]
[1765318530641,0.0612063,92679.0,92678.0,0.04819838]
[1765318530863,0.02157522,92674.0,92673.0,0.01708]
[1765318531077,0.03685522,92674.0,92673.0,0.01708]
[1765318531436,0.07278522,92674.0,92673.0,0.01708]
[1765318532396,0.07278522,92674.0,92673.0,0.01808]
[1765318533391,0.07278522,92674.0,92673.0,0.001]
[1765318533637,0.0223963,92676.0,92674.0,0.22660019]
[1765318533843,0.06038522,92674.0,92673.0,0.01808]
[1765318534714,0.06038522,92674.0,92673.0,0.23389258]
[1765318535818,0.06038522,92674.0,92673.0,0.23489258]
[1765318536409,0.06038522,92674.0,92673.0,0.21781258]
[1765318541101,0.06038522,92674.0,92673.0,0.002]
[1765318541102,1.66424697,92674.0,92673.0,0.002]
[1765318541422,1.68132697,92674.0,92673.0,0.002]
[1765318541620,1.74384996,92674.0,92673.0,0.002]
[1765318541803,1.74384996,92674.0,92661.0,0.00022957]
[1765318541804,1.52811342,92662.0,92661.0,0.00022957]
[1765318541990,1.55579342,92662.0,92661.0,0.00022957]
[1765318542342,1.58093629,92662.0,92661.0,0.00022957]
[1765318543896,1.36509809,92662.0,92661.0,0.00022957]
[1765318544097,1.58493629,92662.0,92661.0,0.00022957]
[1765318544748,1.58293629,92662.0,92661.0,0.00022957]
[1765318544935,1.58093629,92662.0,92661.0,0.00022957]
[1765318545118,1.58193629,92662.0,92661.0,0.00022957]
[1765318545873,1.58393629,92662.0,92661.0,0.00022957]
[1765318546272,1.58293629,92662.0,92661.0,0.00022957]
[1765318546431,1.58493629,92662.0,92661.0,0.00022957]
[1765318550612,1.47333629,92662.0,92661.0,0.00022957]
[1765318559741,1.10063629,92662.0,92661.0,0.00022957]
[1765318561621,1.58493629,92662.0,92661.0,0.00022957]
[1765318563073,1.58093629,92662.0,92661.0,0.00022957]
[1765318563479,1.58493629,92662.0,92661.0,0.00022957]
[1765318563890,1.60205629,92662.0,92661.0,0.00022957]
[1765318564387,1.60405629,92662.0,92661.0,0.00122957]
[1765318565543,0.60405629,92662.0,92661.0,0.00122957]
[1765318565732,1.60405629,92662.0,92661.0,0.00122957]
[1765318566423,1.61403221,92662.0,92661.0,0.00122957]
[1765318566866,1.60405629,92662.0,92661.0,0.00122957]
[1765318567274,1.61403521,92662.0,92661.0,0.00122957]
[1765318567651,1.60405629,92662.0,92661.0,0.00122957]
[1765318568631,1.7770869,92662.0,92661.0,0.00122957]
[1765318568935,1.69956958,92662.0,92661.0,0.00122957]
[1765318569972,1.63704659,92662.0,92661.0,0.00122957]
[1765318570385,1.55504659,92662.0,92661.0,0.00122957]
[1765318570819,1.63704659,92662.0,92661.0,0.00122957]
[1765318571155,0.004,92662.0,92661.0,0.2160701]
[1765318571343,0.004,92662.0,92661.0,0.26253892]
[1765318571755,0.02157522,92668.0,92667.0,0.21582656]
[1765318572166,0.0099963,92680.0,92679.0,0.22658854]
[1765318572982,0.02285876,92689.0,92688.0,0.22656654]
[1765318572983,0.0099963,92689.0,92688.0,0.22656654]
[1765318573132,0.02157522,92687.0,92686.0,0.22657034]
[1765318573331,0.02157522,92684.0,92683.0,0.22657853]
[1765318573713,0.02157522,92691.0,92690.0,0.01078865]
[1765318573889,0.02157522,92701.0,92700.0,0.01078748]
[1765318574856,0.02157522,92701.0,92700.0,0.07875004]
[1765318575059,0.0107862,92711.0,92707.0,0.22651954]
[1765318575353,0.02157522,92701.0,92700.0,0.07096256]
[1765318575560,0.02157522,92701.0,92700.0,0.003]
[1765318575561,0.03912809,92701.0,92700.0,0.003]
[1765318575764,0.06241809,92701.0,92700.0,0.003]
[1765318575990,0.06241809,92701.0,92700.0,0.001]
[1765318576192,0.15976959,92701.0,92700.0,0.001]
[1765318577123,0.15976959,92701.0,92689.0,0.21577511]
[1765318577124,0.01078818,92694.0,92691.0,0.01078853]
[1765318577264,0.0099963,92692.0,92691.0,0.01078853]
[1765318577690,0.0099963,92692.0,92691.0,0.08154884]
[1765318578073,0.10157522,92693.0,92692.0,0.21576835]
[1765318578686,0.08,92693.0,92692.0,0.21576835]
[1765318579299,0.081,92693.0,92692.0,0.21976835]
[1765318580983,0.081,92693.0,92692.0,0.22076835]
[1765318581184,0.08,92693.0,92692.0,0.26369574]
[1765318581388,0.08,92693.0,92692.0,0.26469574]
[1765318581837,0.08,92693.0,92692.0,0.26369574]
[1765318582044,0.08,92693.0,92692.0,0.26669574]
[1765318583003,0.02157522,92717.0,92714.0,0.01078585]
[1765318583204,0.0099963,92720.0,92717.0,0.0107855]
[1765318583404,0.22649296,92719.0,92716.0,0.01078562]
[1765318583627,0.02078145,92720.0,92717.0,0.22649487]
[1765318583838,0.02078145,92720.0,92717.0,0.0107855]
[1765318583839,0.23648536,92720.0,92717.0,0.0107855]
[1765318584339,0.02078145,92720.0,92717.0,0.0107855]
[1765318584516,0.0099963,92720.0,92717.0,0.22649318]
[1765318584702,0.0099963,92726.0,92724.0,0.01078469]
[1765318584898,0.0099963,92726.0,92724.0,0.22647645]
[1765318585100,0.0099963,92726.0,92724.0,0.22647686]
[1765318585358,0.02157522,92728.0,92726.0,0.22647297]
[1765318586136,0.21567589,92732.0,92729.0,0.01078411]
[1765318586380,0.21567589,92732.0,92726.0,0.01078446]
[1765318586381,0.22646652,92729.0,92726.0,0.01078446]
[1765318586554,0.02157522,92729.0,92727.0,0.21568651]
[1765318586753,0.01078376,92732.0,92729.0,0.21568128]
[1765318586956,0.01078376,92732.0,92730.0,0.07076031]
[1765318587747,0.23724602,92734.0,92730.0,0.29722364]
[1765318588029,0.001,92732.0,92730.0,0.29722364]
[1765318588528,0.002,92732.0,92730.0,0.29722364]
[1765318588709,0.002,92732.0,92730.0,0.0815443]
[1765318588887,0.21767545,92732.0,92730.0,0.01078399]
[1765318589313,0.002,92732.0,92730.0,0.22646359]
[1765318589955,0.002,92732.0,92731.0,0.2156776]
[1765318590806,0.02157522,92734.0,92731.0,0.2156776]
[1765318590807,0.02157522,92734.0,92732.0,0.21567514]
[1765318591200,0.03235875,92734.0,92730.0,0.01078399]
[1765318591409,0.01078364,92733.0,92730.0,0.2264635]
[1765318591614,0.01239651,92733.0,92723.0,0.01078481]
[1765318591824,0.01239651,92733.0,92647.0,0.07897698]
[1765318591825,0.02702,92726.0,92707.0,0.2265201]
[1765318592079,0.01078667,92707.0,92701.0,0.22653425]
[1765318592395,0.03236247,92702.0,92699.0,0.0107876]
[1765318592602,0.03236247,92702.0,92700.0,0.01708]
[1765318592603,0.02157522,92702.0,92700.0,0.01708]
[1765318592822,0.02157522,92706.0,92705.0,0.0107869]
[1765318593014,0.02157522,92706.0,92705.0,0.25133551]
[1765318593411,0.01078574,92715.0,92713.0,0.21571946]
[1765318593573,0.22650552,92713.0,92709.0,0.01078643]
[1765318593771,0.22650552,92713.0,92709.0,0.22651521]
[1765318593997,0.01078643,92709.0,92705.0,0.0107869]
[1765318594200,0.02157522,92710.0,92707.0,0.01078667]
[1765318594492,0.02157522,92710.0,92708.0,0.00602275]
[1765318594691,0.02157522,92710.0,92709.0,0.21572878]
[1765318595893,0.02157522,92710.0,92708.0,0.00602275]
[1765318596088,0.02157522,92710.0,92708.0,0.22175164]
[1765318596361,0.02357522,92710.0,92708.0,0.00602275]
[1765318596561,0.21572878,92709.0,92708.0,0.00602275]
[1765318596742,0.02257522,92710.0,92708.0,0.00602275]
[1765318596938,0.21572878,92709.0,92708.0,0.00602275]
[1765318597097,0.02257522,92710.0,92708.0,0.00602275]
[1765318597502,0.02157522,92716.0,92714.0,0.21571715]
[1765318597722,0.02157522,92716.0,92715.0,0.02433126]
[1765318597931,0.24806482,92720.0,92716.0,0.01078562]
[1765318598140,0.02157522,92720.0,92718.0,0.21570576]
[1765318598367,0.01160917,92723.0,92722.0,0.21569853]
[1765318598541,0.01078492,92722.0,92719.0,0.21570546]
[1765318598772,0.00161287,92723.0,92720.0,0.22648787]
[1765318598971,0.01078492,92722.0,92719.0,0.0300259]
[1765318599249,0.01239768,92723.0,92719.0,0.0300259]
[1765318599250,0.22809843,92723.0,92720.0,0.21570115]
[1765318599475,0.21731138,92723.0,92720.0,0.2264863]
[1765318599707,0.21569854,92722.0,92720.0,0.01078515]
[1765318599919,0.02157522,92719.0,92718.0,0.01078539]
[1765318600133,0.01239768,92723.0,92716.0,0.21571249]
[1765318600134,0.02157522,92718.0,92716.0,0.21571249]
[1765318600344,0.02157522,92718.0,92717.0,0.24114658]
[1765318600753,0.02318809,92723.0,92722.0,0.21569853]
[1765318601452,0.02157522,92722.0,92721.0,0.21570033]
[1765318602162,0.02157522,92721.0,92720.0,0.21570319]
[1765318602862,0.02157522,92721.0,92719.0,0.21570551]
[1765318603214,0.02157522,92721.0,92720.0,0.21570319]
[1765318603415,0.02257522,92721.0,92717.0,0.0107855]
[1765318603619,0.03536026,92721.0,92718.0,0.01078539]
[1765318603942,0.03436026,92721.0,92718.0,0.01078539]
[1765318604143,0.03236026,92721.0,92718.0,0.01078539]
[1765318604353,0.02257522,92721.0,92720.0,0.21570319]
[1765318604558,0.02457522,92721.0,92719.0,0.22172631]
[1765318604732,0.02457522,92721.0,92719.0,0.00602225]
[1765318605521,0.02257522,92721.0,92719.0,0.22172583]
[1765318605821,0.02157522,92721.0,92719.0,0.22172583]
[1765318606032,0.02157522,92721.0,92720.0,0.28533184]
[1765318606199,0.02457522,92721.0,92720.0,0.28533184]
[1765318606601,0.002,92721.0,92720.0,0.28533184]
[1765318606834,0.0099963,92726.0,92725.0,0.21569156]
[1765318607028,0.0099963,92726.0,92724.0,0.21569333]
[1765318607258,0.0099963,92726.0,92725.0,0.07550994]
[1765318607472,0.22568553,92726.0,92725.0,0.07550994]
[1765318607714,0.22568553,92726.0,92723.0,0.01078481]
[1765318607928,0.22648326,92723.0,92720.0,0.29611668]
[1765318608226,0.22648326,92723.0,92644.0,0.19352997]
[1765318608227,0.02157522,92714.0,92713.0,0.01078597]
[1765318608371,0.02157522,92714.0,92713.0,0.24358544]
[1765318609752,0.02257522,92714.0,92713.0,0.24358544]
[1765318610526,0.02157522,92714.0,92713.0,0.24458544]
[1765318610726,0.02457522,92714.0,92713.0,0.24458544]
[1765318610930,0.02457522,92714.0,92713.0,0.33484069]
[1765318611997,0.02457522,92714.0,92713.0,0.33384069]
[1765318612198,0.02557522,92714.0,92713.0,0.33384069]
[1765318614439,0.02557522,92714.0,92713.0,0.01708]
[1765318614639,0.24129237,92714.0,92710.0,0.01078632]
[1765318614877,0.02557522,92714.0,92711.0,0.0278662]
[1765318615081,0.02557522,92714.0,92713.0,0.21571947]
[1765318615259,0.004,92714.0,92713.0,0.28538012]
[1765318615437,0.02157522,92720.0,92719.0,0.21570551]
[1765318615647,0.02157522,92724.0,92723.0,0.21569435]
[1765318615875,0.21568529,92728.0,92726.0,0.01078446]
[1765318616050,0.21568935,92726.0,92724.0,0.22647634]
[1765318616248,0.21568935,92726.0,92724.0,0.27500779]
[1765318616447,0.21569156,92725.0,92724.0,0.04853145]
[1765318616669,0.01078434,92727.0,92724.0,0.04853145]
[1765318617048,0.22747105,92728.0,92725.0,0.21569156]
[1765318618078,0.01078422,92728.0,92726.0,0.21568869]
[1765318618287,0.23646291,92729.0,92727.0,0.05230507]
[1765318618288,0.0099963,92729.0,92727.0,0.05230507]
[1765318618710,0.0099963,92729.0,92727.0,0.21568474]
[1765318618941,0.21567595,92732.0,92729.0,0.2264651]
[1765318619147,0.01078364,92733.0,92731.0,0.21567686]
[1765318619314,0.21567528,92732.0,92730.0,0.01078399]
[1765318619716,0.22645738,92733.0,92731.0,0.0718053]
[1765318619883,0.22645738,92733.0,92726.0,0.22647211]
[1765318619884,0.01078399,92730.0,92726.0,0.22647211]
[1765318620076,0.22566934,92733.0,92730.0,0.22646183]
[1765318620283,0.0099963,92733.0,92732.0,0.21567527]
[1765318621086,0.0099963,92733.0,92731.0,0.2156776]
[1765318621293,0.0099963,92733.0,91338.0,0.0107863]
[1765318621294,0.01078422,92728.0,92723.0,0.21569397]
[1765318621506,0.01078422,92728.0,92725.0,0.21569156]
[1765318621712,0.02157522,92725.0,92724.0,0.04188492]
[1765318622256,0.01078422,92728.0,92725.0,0.01078457]
[1765318622455,0.02157522,92729.0,92727.0,0.2156869]
[1765318622663,0.02157522,92729.0,92726.0,0.01078446]
[1765318623194,0.02157522,92729.0,92726.0,0.22647355]
[1765318623528,0.02157522,92729.0,92727.0,0.24219769]
[1765318623735,0.02157522,92729.0,92727.0,0.21568539]
[1765318624066,0.02157522,92729.0,92728.0,0.21568458]
[1765318624390,0.02157522,92729.0,92726.0,0.01078446]
[1765318624391,0.02157522,92729.0,92727.0,0.2156869]
[1765318624601,0.02157522,92729.0,92727.0,0.2166869]
[1765318624973,0.02157522,92729.0,92727.0,0.2156869]
[1765318625173,0.03235933,92729.0,92726.0,0.01708]
[1765318625395,0.03235933,92729.0,92728.0,0.001]
[1765318625582,0.24804158,92729.0,92728.0,0.001]
[1765318625776,0.24804158,92729.0,92726.0,0.0640844]
[1765318626230,0.24804158,92729.0,92727.0,0.001]
[1765318626383,0.02157522,92729.0,92727.0,0.001]
[1765318626602,0.02157522,92729.0,92727.0,0.21668661]
[1765318627001,0.02157522,92729.0,92727.0,0.2932938]
[1765318627535,0.02157522,92729.0,92728.0,0.21568458]
[1765318627685,0.02157522,92729.0,92727.0,0.2922938]
[1765318628192,0.02157522,92729.0,92728.0,0.21568458]
[1765318628398,0.02157522,92729.0,92727.0,0.29229371]
[1765318628689,0.02157522,92729.0,92727.0,0.29329371]
[1765318629169,0.21568458,92728.0,92727.0,0.07660783]
[1765318629503,0.23725747,92729.0,92728.0,0.001]
[1765318630293,0.02157522,92729.0,92728.0,0.05603931]
[1765318630494,0.02157522,92729.0,92728.0,0.27172389]
[1765318631042,0.02157522,92729.0,92728.0,0.05503931]
[1765318631680,0.02157522,92729.0,92728.0,0.27072389]
[1765318631848,0.23725747,92729.0,92728.0,0.05503931]
[1765318632213,0.23725747,92729.0,92728.0,0.05603931]
[1765318633443,0.21568225,92729.0,92728.0,0.05603931]
[1765318637226,0.21568044,92730.0,92728.0,0.05603931]
[1765318637416,0.01078388,92731.0,92729.0,0.08211145]
[1765318637616,0.22646218,92731.0,92729.0,0.08211145]
[1765318637818,0.22646218,92731.0,92728.0,0.001]
[1765318638085,0.24803443,92732.0,92728.0,0.22746878]
[1765318638246,0.215678,92731.0,92728.0,0.22646878]
[1765318638444,0.24803443,92732.0,92728.0,0.22646878]
[1765318638809,0.001,92731.0,92729.0,0.21568198]
[1765318638945,0.001,92731.0,92730.0,0.07660582]
[1765318639295,0.001,92731.0,92729.0,0.21568133]
[1765318639788,0.001,92731.0,92730.0,0.21567993]
[1765318640189,0.02157522,92732.0,92731.0,0.2156776]
[1765318640460,0.02257522,92732.0,92731.0,0.2156776]
[1765318640808,0.02157522,92732.0,92731.0,0.2156776]
[1765318641122,0.02157522,92732.0,92731.0,0.31375093]
[1765318641328,0.0099963,92739.0,92737.0,0.01078318]
[1765318641528,0.02157522,92744.0,92743.0,0.21564964]
[1765318641846,0.02157522,92744.0,92743.0,0.26201512]
[1765318643303,0.02157522,92744.0,92743.0,0.26301512]
[1765318645576,0.0099963,92753.0,92750.0,0.01078167]
[1765318645808,0.21561947,92756.0,92752.0,0.2156267]
[1765318646015,0.21562232,92755.0,92753.0,0.0265052]
[1765318646203,0.02157522,92759.0,92756.0,0.01078097]
[1765318646329,0.23718843,92759.0,92756.0,0.22639838]
[1765318646527,0.23718843,92759.0,92757.0,0.07057133]
[1765318646758,0.21561482,92758.0,92757.0,0.07057133]
[1765318646957,0.03979,92758.0,92753.0,0.0265052]
[1765318647158,0.01078271,92741.0,92737.0,0.01078318]
[1765318647416,0.01078364,92733.0,92726.0,0.05778886]
[1765318647591,0.01078411,92729.0,92726.0,0.0470044]
[1765318647792,0.01078411,92729.0,92725.0,0.01708]
[1765318647793,0.22646696,92729.0,92727.0,0.04848735]
[1765318648211,0.2264655,92730.0,92727.0,0.04848735]
[1765318648413,0.01078399,92730.0,92727.0,0.26417382]
[1765318648611,0.0099963,92728.0,92727.0,0.04848735]
[1765318649955,0.0129963,92728.0,92727.0,0.04848735]
[1765318650133,0.0129963,92728.0,92727.0,0.06556735]
[1765318650519,0.003,92728.0,92727.0,0.06556735]
[1765318651321,0.005,92728.0,92727.0,0.06556735]
[1765318651520,0.04479,92728.0,92727.0,0.01708]
[1765318651725,0.005,92728.0,92727.0,0.01708]
[1765318651956,0.03235956,92727.0,92723.0,0.01078481]
[1765318652166,0.22648368,92722.0,92719.0,0.22649005]
[1765318652341,0.01078481,92723.0,92719.0,0.22649005]
[1765318652342,0.02157522,92723.0,92720.0,0.07316361]
[1765318652541,0.21569868,92722.0,92720.0,0.06237846]
[1765318652740,0.02157522,92723.0,92720.0,0.24356666]
[1765318653064,0.24805696,92723.0,92720.0,0.24356666]
[1765318653284,0.21569875,92722.0,92720.0,0.02786515]
[1765318653431,0.21570086,92721.0,92720.0,0.01708]
[1765318653787,0.02157522,92730.0,92728.0,0.01078422]
[1765318654069,0.01078353,92734.0,92730.0,0.21567993]
[1765318654461,0.21567311,92733.0,92730.0,0.21567993]
[1765318654662,0.00161287,92741.0,92736.0,0.01078329]
[1765318654862,0.00161287,92741.0,92740.0,0.21565667]
[1765318655036,0.01078201,92747.0,92744.0,0.22642893]
[1765318655236,0.0107819,92748.0,92745.0,0.04636515]
[1765318655440,0.21564272,92746.0,92745.0,0.04636515]
[1765318655641,0.21567993,92730.0,92722.0,0.01078492]
[1765318655840,0.26521515,92730.0,92729.0,0.01708]
[1765318656040,0.28922515,92730.0,92729.0,0.01708]
[1765318656666,0.26764993,92730.0,92729.0,0.01708]
[1765318657065,0.28922515,92730.0,92729.0,0.01708]
[1765318657264,0.29022515,92730.0,92729.0,0.01708]
[1765318657466,0.02157522,92724.0,92723.0,0.22648092]
[1765318657786,0.02157522,92724.0,92723.0,0.07531854]
[1765318657971,0.02157522,92724.0,92723.0,0.06453373]
[1765318658158,0.02157522,92724.0,92723.0,0.04745373]
[1765318658350,0.02157522,92724.0,92723.0,0.06453373]
[1765318658959,0.02357522,92724.0,92723.0,0.06453373]
[1765318659164,0.02457522,92724.0,92723.0,0.28022994]
[1765318659360,0.21570158,92721.0,92716.0,0.01078562]
[1765318659566,0.01078492,92722.0,92717.0,0.0278655]
[1765318659785,0.2157009,92721.0,92717.0,0.0278655]
[1765318660117,0.01078492,92722.0,92718.0,0.05887237]
[1765318660322,0.02296399,92730.0,92724.0,0.01078469]
[1765318660618,0.01078434,92727.0,92723.0,0.22648095]
[1765318660782,0.22647132,92727.0,92724.0,0.21569305]
[1765318660989,0.22647132,92727.0,92722.0,0.01078492]
[1765318660990,0.01078457,92725.0,92722.0,0.01078492]
[1765318661182,0.22647632,92725.0,92723.0,0.04818411]
[1765318661382,0.21569388,92724.0,92723.0,0.04818411]
[1765318661744,0.01078434,92727.0,92723.0,0.04818411]
[1765318661925,0.21569388,92724.0,92723.0,0.04818411]
[1765318662119,0.01078446,92726.0,92723.0,0.05896892]
[1765318662283,0.22647403,92726.0,92724.0,0.03358921]
[1765318662686,0.21569156,92725.0,92724.0,0.03358921]
[1765318663124,0.21569431,92724.0,92721.0,0.22648574]
[1765318663324,0.01278446,92726.0,92721.0,0.01078504]
[1765318663523,0.22647597,92726.0,92722.0,0.01078492]
[1765318663732,0.22647868,92724.0,92721.0,0.01078504]
[1765318664000,0.2264783,92725.0,92722.0,0.01078492]
[1765318664206,0.01078457,92725.0,92723.0,0.02759192]
[1765318664526,0.01178446,92726.0,92723.0,0.02759192]
[1765318664740,0.21769158,92725.0,92723.0,0.02759192]
[1765318664957,0.22847625,92725.0,92722.0,0.01078492]
[1765318665175,0.2156963,92723.0,92721.0,0.01078504]
[1765318665384,0.22648368,92722.0,92719.0,0.21570336]
[1765318665625,0.01078492,92722.0,92720.0,0.21570278]
[1765318665830,0.01078481,92723.0,92721.0,0.06965512]
[1765318666024,0.01078481,92723.0,92719.0,0.01078527]
[1765318666229,0.01078492,92722.0,92719.0,0.01078527]
[1765318666467,0.001,92722.0,92721.0,0.21570086]
[1765318666666,0.22647822,92725.0,92721.0,0.2264859]
[1765318666871,0.01078457,92725.0,92720.0,0.22648834]
[1765318667043,0.21569623,92723.0,92721.0,0.24113618]
[1765318667247,0.21569423,92724.0,92721.0,0.24113618]
[1765318667455,0.21569825,92723.0,92721.0,0.02543536]
[1765318667709,0.21569836,92723.0,92721.0,0.02543536]
[1765318667884,0.22648345,92722.0,92719.0,0.01078527]
[1765318668092,0.22648345,92722.0,92719.0,0.22648935]
[1765318668307,0.22748345,92722.0,92720.0,0.01708]
[1765318668463,0.22748345,92722.0,92721.0,0.01708]
[1765318668658,0.22648345,92722.0,92721.0,0.01708]
[1765318668898,0.22648345,92722.0,92721.0,0.08781432]
[1765318669048,0.22748345,92722.0,92721.0,0.08781432]
[1765318669397,0.22648345,92722.0,92721.0,0.08781432]
[1765318669564,0.21569622,92723.0,92721.0,0.28643483]
[1765318669743,0.001,92722.0,92721.0,0.09859936]
[1765318669943,0.002,92722.0,92721.0,0.02786504]
[1765318670143,0.002,92722.0,92721.0,0.2435659]
[1765318670771,0.001,92722.0,92721.0,0.2435659]
[1765318672020,0.002,92722.0,92721.0,0.2435659]
[1765318674990,0.002,92722.0,92721.0,0.01708]
[1765318675147,0.002,92722.0,92721.0,0.28194393]
[1765318675495,0.002,92722.0,92721.0,0.06624307]
[1765318675665,0.002,92722.0,92721.0,0.28194393]
[1765318684255,0.002,92722.0,92717.0,0.0107855]
[1765318684256,0.01078667,92707.0,92680.0,0.00099999]
[1765318684487,0.04426287,92722.0,92702.0,0.22653232]
[1765318684488,0.01078643,92709.0,92702.0,0.22653232]
[1765318684666,0.01078678,92706.0,92703.0,0.02157427]
[1765318684880,0.02157522,92713.0,92706.0,0.21573573]
[1765318685073,0.03236119,92713.0,92708.0,0.22651752]
[1765318685277,0.01078667,92707.0,92705.0,0.21573796]
[1765318685674,0.22652059,92707.0,92704.0,0.22652744]
[1765318685845,0.22652478,92706.0,92705.0,0.08937704]
[1765318686269,0.21575438,92698.0,92697.0,0.003]
[1765318686412,0.21575438,92698.0,92697.0,0.02008]
[1765318686613,0.21577733,92689.0,92685.0,0.21578262]
[1765318686821,0.21577523,92690.0,92686.0,0.11089267]
[1765318687136,0.22655688,92692.0,92688.0,0.01078888]
[1765318687343,0.0107883,92693.0,92690.0,0.01078865]
[1765318687538,0.0107883,92693.0,92691.0,0.21577067]
[1765318687791,0.0107883,92693.0,92690.0,0.01078865]
[1765318687924,0.0107883,92693.0,92691.0,0.03826185]
[1765318688120,0.22654909,92696.0,92691.0,0.22655893]